fUSD/lending_fUSD_20250110
["ID","MTS","AMOUNT","RATE_DAILY","PERIOD"]
[348440872,1736529052117,-500.0,0.00010493,2]
[348440873,1736529052126,-967.39,0.00010493,2]
[348440874,1736529052135,-635.21,0.00010493,2]
[348440875,1736529052145,-812.79,0.00010493,2]
[348440876,1736529052154,-550.45,0.00010493,2]
[348440877,1736529052163,-1000.0,0.00010493,2]
[348440878,1736529052174,-657.85,0.00010493,2]
[348440879,1736529052185,-500.0,0.00010493,2]
[348440880,1736529052194,-210.46368128,0.000105,2]
[348440881,1736529052203,-150.0,0.000105,2]
[348440882,1736529052213,-500.0,0.00010513,2]
[348440883,1736529052222,-1000.0,0.00010513,2]
[348440884,1736529052232,-1000.0,0.00010513,2]
[348440885,1736529052241,-1000.0,0.00010513,2]
[348440886,1736529052251,-1000.0,0.00010513,2]
[348440887,1736529052261,-1000.0,0.00010513,2]
[348440888,1736529052276,-1000.0,0.00010513,2]
[348440889,1736529052285,-1000.0,0.00010513,2]
[348440890,1736529052295,-1000.0,0.00010513,2]
[348440891,1736529052306,-1000.0,0.00010513,2]
[348440892,1736529052316,-1000.0,0.00010513,2]
[348440893,1736529052327,-389.30106978,0.00010613,2]
[348440894,1736529052336,-166.73794238,0.00010645,2]
[348440895,1736529052348,-869.1,0.00010652,2]
[348440896,1736529052359,-500.0,0.00010652,2]
[348440897,1736529052373,-1464.21,0.00010652,2]
[348440898,1736529052383,-582.34,0.00010652,2]
[348440899,1736529052393,-1024.71,0.00010652,2]
[348440900,1736529052403,-1511.09,0.00010652,2]
[348440901,1736529052413,-1993.58,0.00010652,2]
[348440902,1736529052424,-1204.52,0.00010652,2]
[348440903,1736529052435,-763.82,0.00010652,2]
[348440904,1736529052444,-2234.93,0.00010652,2]
[348440905,1736529052455,-701.76,0.00010652,2]
[348440906,1736529052464,-550.99,0.00010652,2]
[348440907,1736529052474,-1753.49,0.00010652,2]
[348440908,1736529052484,-44.53500167,0.00010652,2]
[348440909,1736529052799,-521.49499833,0.00010652,2]
[348440910,1736529052809,-500.0,0.00010652,2]
[348440911,1736529052820,-5.75540167,0.00010652,2]
[348440913,1736529588421,793.03,8.219e-05,2]
[348440915,1736529677299,179.99,8.304e-05,2]
[348440916,1736529680097,23900.0,8.304e-05,2]
[348440917,1736529765411,200.0,8.374e-05,2]
[348440918,1736529860952,1500.0,8.331e-05,2]
[348440919,1736529875046,12346.11,8.37e-05,2]
[348440920,1736529879502,799.86,8.37e-05,2]
[348440921,1736529899938,2508.53,8.297e-05,2]
[348440922,1736529951286,1000.0,8.365e-05,2]
[348440923,1736529980656,232.75,8.23e-05,2]
[348440924,1736529998731,-500.0,9.832e-05,7]
[348440925,1736530011133,470.56,8.175e-05,2]
[348440926,1736530033990,200.0,8.197e-05,2]
[348440929,1736530051967,62211.48,8.181e-05,2]
[348440930,1736530058314,7374.14,8.181e-05,2]
[348440931,1736530059228,250.0,8.219e-05,2]
[348440941,1736530197908,150.0,8.456e-05,2]
[348440942,1736530198143,150.0,8.236e-05,2]
[348440943,1736530198429,150.0,8.223e-05,2]
[348440952,1736530232458,-163.83,8.534e-05,2]
[348440953,1736530232468,-855.92308675,8.535e-05,2]
[348440954,1736530232480,-3497.58691325,8.535e-05,2]
[348440955,1736530232489,-537.01831686,8.535e-05,2]
[348440956,1736530232501,-1678.1682657,8.535e-05,2]
[348440957,1736530232511,-442.361965,8.592e-05,2]
[348440958,1736530232520,-150.0,8.658e-05,2]
[348440959,1736530232530,-25691.54106587,8.679e-05,2]
[348440960,1736530232541,-4069.34,8.68e-05,2]
[348440961,1736530232550,-250.0,8.686e-05,2]
[348440962,1736530232559,-150.0,8.754e-05,2]
[348440963,1736530232569,-230.59155975,8.766e-05,2]
[348440964,1736530232580,-1127.19488473,8.8e-05,2]
[348440965,1736530232589,-1729.48,8.801e-05,2]
[348440966,1736530232599,-4788.67,8.801e-05,2]
[348440967,1736530232608,-150.0,8.811e-05,2]
[348440968,1736530232617,-250.0,8.812e-05,2]
[348440969,1736530232629,-7003.73,8.812e-05,2]
[348440970,1736530232638,-5447.23,8.812e-05,2]
[348440971,1736530232648,-2937.75,8.812e-05,2]
[348440972,1736530232659,-150.99,8.812e-05,2]
[348440973,1736530232669,-150.99,8.812e-05,2]
[348440974,1736530232679,-501.7,8.886e-05,2]
[348440975,1736530232688,-299.99,8.886e-05,2]
[348440976,1736530232697,-162.89,8.918e-05,2]
[348440977,1736530232707,-150.0,8.929e-05,2]
[348440978,1736530232716,-1689.12366882,9.009e-05,2]
[348440979,1736530232725,-675.02,9.01e-05,2]
[348440980,1736530232735,-500.0,9.01e-05,2]
[348440981,1736530232744,-734.59,9.01e-05,2]
[348440982,1736530232756,-500.0,9.01e-05,2]
[348440983,1736530232765,-516.56,9.01e-05,2]
[348440984,1736530232775,-510.01,9.01e-05,2]
[348440985,1736530232784,-914.35,9.01e-05,2]
[348440986,1736530232794,-1036.94,9.01e-05,2]
[348440987,1736530232804,-931.65,9.01e-05,2]
[348440988,1736530232814,-1855.15,9.01e-05,2]
[348440989,1736530232824,-584.27805932,9.01e-05,2]
[348440990,1736530232834,-3490.04,9.01e-05,2]
[348440991,1736530232844,-605.78,9.01e-05,2]
[348440992,1736530232853,-500.0,9.01e-05,2]
[348440993,1736530232863,-500.0,9.01e-05,2]
[348440994,1736530232873,-554.3,9.01e-05,2]
[348440995,1736530232883,-609.2,9.01e-05,2]
[348440996,1736530232893,-1789.72,9.01e-05,2]
[348440997,1736530232902,-1209.32,9.01e-05,2]
[348440998,1736530232911,-150.0,9.014e-05,2]
[348440999,1736530232921,-2000.0,9.036e-05,2]
[348441000,1736530232931,-150.0,9.051e-05,2]
[348441001,1736530232940,-150.0,9.057e-05,2]
[348441002,1736530232950,-150.0,9.058e-05,2]
[348441003,1736530232960,-265.5569,9.084e-05,2]
[348441004,1736530232971,-9503.83,9.084e-05,2]
[348441005,1736530232982,-572.60502449,9.097e-05,2]
[348441006,1736530232992,-572.60502449,9.097e-05,2]
[348441007,1736530233004,-300.0,9.161e-05,2]
[348441008,1736530233013,-150.0,9.168e-05,2]
[348441009,1736530233023,-168.8545,9.182e-05,2]
[348441010,1736530233033,-7240.959,9.182e-05,2]
[348441011,1736530233043,-20736.3397,9.182e-05,2]
[348441012,1736530233053,-1354.9702,9.182e-05,2]
[348441013,1736530233063,-150.0,9.182e-05,2]
[348441014,1736530233075,-1320.0593,9.183e-05,2]
[348441015,1736530233085,-47043.5549,9.184e-05,2]
[348441016,1736530233096,-303.2441,9.184e-05,2]
[348441017,1736530233106,-1500.0,9.184e-05,2]
[348441018,1736530233116,-150.0,9.188e-05,2]
[348441019,1736530233126,-849.59,9.281e-05,2]
[348441020,1736530233136,-641.64,9.281e-05,2]
[348441021,1736530233414,-585.51,9.281e-05,2]
[348441022,1736530233424,-1470.81,9.281e-05,2]
[348441023,1736530233434,-994.64,9.281e-05,2]
[348441024,1736530233444,-500.0,9.281e-05,2]
[348441025,1736530233454,-500.0,9.281e-05,2]
[348441026,1736530233464,-1828.62,9.281e-05,2]
[348441027,1736530233473,-500.0,9.281e-05,2]
[348441028,1736530233482,-2183.28,9.281e-05,2]
[348441029,1736530233492,-1386.18,9.281e-05,2]
[348441030,1736530233505,-500.0,9.281e-05,2]
[348441031,1736530233514,-826.56,9.281e-05,2]
[348441032,1736530233524,-554.49,9.281e-05,2]
[348441033,1736530233534,-500.0,9.281e-05,2]
[348441034,1736530233543,-663.2,9.281e-05,2]
[348441035,1736530233553,-500.0,9.281e-05,2]
[348441036,1736530233563,-500.0,9.281e-05,2]
[348441037,1736530233573,-500.0,9.281e-05,2]
[348441038,1736530233587,-500.0,9.281e-05,2]
[348441039,1736530233599,-2169.87,9.281e-05,2]
[348441040,1736530233609,-500.0,9.281e-05,2]
[348441041,1736530233619,-500.0,9.281e-05,2]
[348441042,1736530233628,-500.0,9.281e-05,2]
[348441043,1736530233638,-500.0,9.281e-05,2]
[348441044,1736530233648,-500.0,9.281e-05,2]
[348441045,1736530233657,-500.0,9.281e-05,2]
[348441046,1736530233667,-500.0,9.281e-05,2]
[348441047,1736530233677,-500.0,9.281e-05,2]
[348441048,1736530233687,-668.22,9.281e-05,2]
[348441049,1736530233696,-500.0,9.281e-05,2]
[348441050,1736530233706,-872.29,9.282e-05,2]
[348441051,1736530233716,-1769.32,9.282e-05,2]
[348441052,1736530233726,-777.84,9.282e-05,2]
[348441053,1736530233736,-500.0,9.282e-05,2]
[348441054,1736530233746,-633.316716,9.282e-05,2]
[348441055,1736530233759,-662.063092,9.282e-05,2]
[348441056,1736530233769,-159.206517,9.282e-05,2]
[348441057,1736530233778,-157.150173,9.282e-05,2]
[348441058,1736530233788,-2453.75,9.282e-05,2]
[348441059,1736530233798,-153.701775,9.282e-05,2]
[348441060,1736530233808,-582.81,9.282e-05,2]
[348441061,1736530233817,-500.0,9.282e-05,2]
[348441062,1736530233827,-176.720213,9.282e-05,2]
[348441063,1736530233836,-970.2254,9.282e-05,2]
[348441064,1736530233846,-500.0,9.282e-05,2]
[348441065,1736530233856,-165.157374,9.282e-05,2]
[348441066,1736530233866,-500.0,9.282e-05,2]
[348441067,1736530233875,-2105.57,9.282e-05,2]
[348441068,1736530233885,-171.3305,9.282e-05,2]
[348441069,1736530233894,-153.701771,9.282e-05,2]
[348441070,1736530233904,-171.330499,9.282e-05,2]
[348441071,1736530233914,-159.143141,9.282e-05,2]
[348441072,1736530233923,-728.88,9.282e-05,2]
[348441073,1736530233933,-500.0,9.282e-05,2]
[348441074,1736530233942,-500.0,9.282e-05,2]
[348441075,1736530233952,-153.829371,9.282e-05,2]
[348441076,1736530233961,-500.0,9.282e-05,2]
[348441077,1736530233971,-500.0,9.282e-05,2]
[348441078,1736530233982,-500.0,9.282e-05,2]
[348441079,1736530233991,-500.0,9.282e-05,2]
[348441080,1736530234001,-500.0,9.282e-05,2]
[348441081,1736530234011,-500.0,9.282e-05,2]
[348441082,1736530234020,-171.330499,9.282e-05,2]
[348441083,1736530234030,-500.0,9.282e-05,2]
[348441084,1736530234040,-500.0,9.282e-05,2]
[348441085,1736530234050,-157.118635,9.282e-05,2]
[348441086,1736530234060,-500.0,9.282e-05,2]
[348441087,1736530234070,-500.0,9.282e-05,2]
[348441088,1736530234080,-500.0,9.282e-05,2]
[348441089,1736530234090,-500.0,9.282e-05,2]
[348441090,1736530234100,-500.0,9.282e-05,2]
[348441091,1736530234110,-500.0,9.282e-05,2]
[348441092,1736530234120,-500.0,9.282e-05,2]
[348441093,1736530234130,-500.0,9.282e-05,2]
[348441094,1736530234140,-500.0,9.282e-05,2]
[348441095,1736530234150,-500.0,9.282e-05,2]
[348441096,1736530234159,-258.56,9.282e-05,2]
[348441097,1736530234169,-500.0,9.282e-05,2]
[348441098,1736530234178,-500.0,9.282e-05,2]
[348441099,1736530234188,-500.0,9.282e-05,2]
[348441100,1736530234198,-500.0,9.282e-05,2]
[348441101,1736530234208,-500.0,9.282e-05,2]
[348441102,1736530234218,-500.0,9.282e-05,2]
[348441103,1736530234227,-500.0,9.282e-05,2]
[348441104,1736530234237,-500.0,9.282e-05,2]
[348441105,1736530234246,-500.0,9.282e-05,2]
[348441106,1736530234259,-500.0,9.282e-05,2]
[348441107,1736530234269,-500.0,9.282e-05,2]
[348441108,1736530234279,-500.0,9.282e-05,2]
[348441109,1736530234289,-500.0,9.282e-05,2]
[348441110,1736530234298,-500.0,9.282e-05,2]
[348441111,1736530234308,-500.0,9.282e-05,2]
[348441112,1736530234318,-500.0,9.282e-05,2]
[348441113,1736530234328,-500.0,9.282e-05,2]
[348441114,1736530234339,-500.0,9.282e-05,2]
[348441115,1736530234349,-500.0,9.282e-05,2]
[348441116,1736530234359,-500.0,9.282e-05,2]
[348441117,1736530234369,-500.0,9.282e-05,2]
[348441118,1736530234379,-707.28,9.282e-05,2]
[348441119,1736530234389,-500.0,9.282e-05,2]
[348441120,1736530234399,-500.0,9.282e-05,2]
[348441121,1736530234409,-1060.5,9.282e-05,2]
[348441122,1736530234420,-596.55,9.282e-05,2]
[348441123,1736530234430,-500.0,9.282e-05,2]
[348441124,1736530234441,-515.15,9.282e-05,2]
[348441125,1736530234452,-169.330884,9.282e-05,2]
[348441126,1736530234462,-1281.2,9.282e-05,2]
[348441127,1736530234472,-601.88,9.282e-05,2]
[348441128,1736530234482,-475.32,9.282e-05,2]
[348441129,1736530234493,-544.97,9.282e-05,2]
[348441130,1736530234504,-500.0,9.282e-05,2]
[348441131,1736530234515,-500.0,9.282e-05,2]
[348441132,1736530234525,-168.193475,9.282e-05,2]
[348441133,1736530234535,-500.0,9.282e-05,2]
[348441134,1736530234546,-500.0,9.282e-05,2]
[348441135,1736530234556,-500.0,9.282e-05,2]
[348441136,1736530234566,-823.36,9.282e-05,2]
[348441137,1736530234576,-500.0,9.282e-05,2]
[348441138,1736530234591,-500.0,9.282e-05,2]
[348441139,1736530234600,-500.0,9.282e-05,2]
[348441140,1736530234610,-500.0,9.282e-05,2]
[348441141,1736530234620,-500.0,9.282e-05,2]
[348441142,1736530234630,-500.0,9.282e-05,2]
[348441143,1736530234640,-500.0,9.282e-05,2]
[348441144,1736530234652,-500.0,9.282e-05,2]
[348441145,1736530234662,-500.0,9.282e-05,2]
[348441146,1736530234672,-500.0,9.282e-05,2]
[348441147,1736530234682,-500.0,9.282e-05,2]
[348441148,1736530234692,-1706.31,9.282e-05,2]
[348441149,1736530234702,-500.0,9.282e-05,2]
[348441150,1736530234712,-500.0,9.282e-05,2]
[348441151,1736530234722,-500.0,9.282e-05,2]
[348441152,1736530234732,-500.0,9.282e-05,2]
[348441153,1736530234742,-1164.94,9.282e-05,2]
[348441154,1736530234753,-164.393928,9.282e-05,2]
[348441155,1736530234762,-500.0,9.282e-05,2]
[348441156,1736530234772,-156.51609,9.282e-05,2]
[348441157,1736530234782,-500.0,9.282e-05,2]
[348441158,1736530234792,-796.44,9.282e-05,2]
[348441159,1736530234801,-156.638758,9.282e-05,2]
[348441160,1736530234810,-501.07517337,9.282e-05,2]
[348441161,1736530234820,-524.04186268,9.282e-05,2]
[348441162,1736530234829,-500.0,9.282e-05,2]
[348441163,1736530234839,-500.0,9.282e-05,2]
[348441164,1736530234848,-500.0,9.282e-05,2]
[348441165,1736530234858,-500.0,9.282e-05,2]
[348441166,1736530234868,-1144.08,9.282e-05,2]
[348441167,1736530234878,-500.0,9.282e-05,2]
[348441168,1736530234887,-500.4618116,9.282e-05,2]
[348441169,1736530234897,-172.308574,9.282e-05,2]
[348441170,1736530234908,-2817.6,9.282e-05,2]
[348441171,1736530234919,-500.0,9.282e-05,2]
[348441172,1736530234929,-500.0,9.282e-05,2]
[348441173,1736530234939,-562.68,9.282e-05,2]
[348441174,1736530234950,-500.0,9.282e-05,2]
[348441175,1736530234961,-654.13,9.282e-05,2]
[348441176,1736530234971,-2670.51,9.282e-05,2]
[348441177,1736530234980,-500.0,9.282e-05,2]
[348441178,1736530234990,-1921.75,9.282e-05,2]
[348441179,1736530234999,-535.33,9.282e-05,2]
[348441180,1736530235010,-991.35,9.282e-05,2]
[348441181,1736530235020,-621.01,9.282e-05,2]
[348441182,1736530235029,-500.0,9.282e-05,2]
[348441183,1736530235038,-700.57,9.282e-05,2]
[348441184,1736530235047,-1998.71,9.282e-05,2]
[348441185,1736530235056,-500.0,9.282e-05,2]
[348441186,1736530235065,-500.0,9.282e-05,2]
[348441187,1736530235075,-4493.71,9.282e-05,2]
[348441188,1736530235085,-500.0,9.282e-05,2]
[348441189,1736530235095,-500.0,9.282e-05,2]
[348441190,1736530235106,-500.0,9.282e-05,2]
[348441191,1736530235116,-552.25,9.282e-05,2]
[348441192,1736530235127,-500.0,9.282e-05,2]
[348441193,1736530235136,-614.14,9.282e-05,2]
[348441194,1736530235146,-1341.1,9.282e-05,2]
[348441195,1736530235156,-937.3,9.282e-05,2]
[348441196,1736530235167,-500.0,9.282e-05,2]
[348441197,1736530235176,-531.66,9.282e-05,2]
[348441198,1736530235188,-837.66,9.282e-05,2]
[348441199,1736530235198,-1092.22,9.282e-05,2]
[348441200,1736530235208,-500.0,9.282e-05,2]
[348441201,1736530235218,-500.0,9.282e-05,2]
[348441202,1736530235227,-614.23,9.282e-05,2]
[348441203,1736530235237,-500.0,9.282e-05,2]
[348441204,1736530235247,-500.0,9.282e-05,2]
[348441205,1736530235257,-2618.1,9.282e-05,2]
[348441206,1736530235266,-2552.37,9.282e-05,2]
[348441207,1736530235277,-500.0,9.282e-05,2]
[348441208,1736530235287,-500.0,9.282e-05,2]
[348441209,1736530235296,-500.0,9.282e-05,2]
[348441210,1736530235306,-793.85,9.282e-05,2]
[348441211,1736530235316,-500.0,9.282e-05,2]
[348441212,1736530235325,-1026.85,9.282e-05,2]
[348441213,1736530235335,-530.0933391,9.282e-05,2]
[348441214,1736530235345,-500.0,9.282e-05,2]
[348441215,1736530235355,-1480.34,9.282e-05,2]
[348441216,1736530235366,-1480.34,9.282e-05,2]
[348441217,1736530235377,-636.17,9.282e-05,2]
[348441218,1736530235387,-500.0,9.282e-05,2]
[348441219,1736530235397,-500.0,9.283e-05,2]
[348441220,1736530235406,-500.0,9.283e-05,2]
[348441221,1736530235417,-500.0,9.283e-05,2]
[348441222,1736530235426,-500.0,9.283e-05,2]
[348441223,1736530235436,-320.61840445,9.283e-05,2]
[348441224,1736530235445,-667.55,9.283e-05,2]
[348441225,1736530235455,-939.02,9.283e-05,2]
[348441226,1736530235464,-618.39,9.283e-05,2]
[348441227,1736530235473,-1000.0,9.283e-05,2]
[348441228,1736530235483,-692.39,9.283e-05,2]
[348441229,1736530235492,-500.0,9.283e-05,2]
[348441230,1736530235504,-500.92058106,9.283e-05,2]
[348441231,1736530235514,-1745.91,9.283e-05,2]
[348441232,1736530235524,-2946.71,9.283e-05,2]
[348441233,1736530235534,-989.06,9.283e-05,2]
[348441234,1736530235544,-1181.84,9.283e-05,2]
[348441235,1736530235554,-675.02,9.284e-05,2]
[348441236,1736530235565,-500.0,9.284e-05,2]
[348441237,1736530235574,-734.59,9.284e-05,2]
[348441238,1736530235588,-500.0,9.284e-05,2]
[348441239,1736530235598,-516.56,9.284e-05,2]
[348441240,1736530235608,-510.01,9.284e-05,2]
[348441241,1736530235618,-914.35,9.284e-05,2]
[348441242,1736530235629,-1036.94,9.284e-05,2]
[348441243,1736530235639,-931.65,9.284e-05,2]
[348441244,1736530235649,-1855.15,9.284e-05,2]
[348441245,1736530235662,-3490.04,9.284e-05,2]
[348441246,1736530235673,-605.78,9.284e-05,2]
[348441247,1736530235682,-500.0,9.284e-05,2]
[348441248,1736530235692,-500.0,9.284e-05,2]
[348441249,1736530235704,-554.3,9.284e-05,2]
[348441250,1736530235713,-609.2,9.284e-05,2]
[348441251,1736530235722,-1789.72,9.284e-05,2]
[348441252,1736530235732,-1209.32,9.284e-05,2]
[348441253,1736530235742,-150.0,9.303e-05,2]
[348441254,1736530235751,-150.0,9.313e-05,2]
[348441255,1736530235762,-437.86,9.33e-05,2]
[348441256,1736530235771,-437.86,9.33e-05,2]
[348441257,1736530235781,-437.86,9.33e-05,2]
[348441258,1736530235791,-150.0,9.332e-05,2]
[348441259,1736530235801,-5000.0,9.357e-05,2]
[348441260,1736530235811,-150.0,9.378e-05,2]
[348441261,1736530235820,-1000.0,9.41e-05,2]
[348441262,1736530235829,-772.07,9.425e-05,2]
[348441263,1736530235838,-437.86,9.425e-05,2]
[348441264,1736530235848,-437.86,9.425e-05,2]
[348441265,1736530235857,-772.07,9.425e-05,2]
[348441266,1736530235867,-150.0,9.432e-05,2]
[348441267,1736530235876,-14452.4227,9.456e-05,2]
[348441268,1736530235886,-1921.1561,9.456e-05,2]
[348441269,1736530235895,-37093.8587,9.456e-05,2]
[348441270,1736530235905,-15866.8617,9.457e-05,2]
[348441271,1736530235915,-7277.0105,9.457e-05,2]
[348441272,1736530235924,-150.0,9.5e-05,2]
[348441273,1736530235933,-500.58910128,9.555e-05,2]
[348441274,1736530235943,-501.18021556,9.555e-05,2]
[348441275,1736530235952,-501.55883974,9.555e-05,2]
[348441276,1736530235962,-500.0,9.555e-05,2]
[348441277,1736530235971,-500.0,9.555e-05,2]
[348441278,1736530235981,-500.0,9.555e-05,2]
[348441279,1736530235990,-500.0,9.555e-05,2]
[348441280,1736530236000,-500.0,9.555e-05,2]
[348441281,1736530236012,-500.0,9.555e-05,2]
[348441282,1736530236023,-500.0,9.555e-05,2]
[348441283,1736530236032,-500.0,9.555e-05,2]
[348441284,1736530236042,-500.0,9.555e-05,2]
[348441285,1736530236051,-500.0,9.555e-05,2]
[348441286,1736530236061,-500.0,9.555e-05,2]
[348441287,1736530236070,-500.0,9.555e-05,2]
[348441288,1736530236079,-500.0,9.555e-05,2]
[348441289,1736530236089,-500.0,9.555e-05,2]
[348441290,1736530236098,-500.0,9.555e-05,2]
[348441291,1736530236108,-500.0,9.555e-05,2]
[348441292,1736530236117,-500.0,9.555e-05,2]
[348441293,1736530236127,-500.0,9.555e-05,2]
[348441294,1736530236136,-500.0,9.555e-05,2]
[348441295,1736530236145,-500.0,9.555e-05,2]
[348441296,1736530236154,-500.0,9.555e-05,2]
[348441297,1736530236163,-500.0,9.555e-05,2]
[348441298,1736530236172,-500.0,9.555e-05,2]
[348441299,1736530236182,-500.0,9.555e-05,2]
[348441300,1736530236192,-500.0,9.555e-05,2]
[348441301,1736530236202,-500.0,9.555e-05,2]
[348441302,1736530236211,-511.92,9.555e-05,2]
[348441303,1736530236221,-500.0,9.555e-05,2]
[348441304,1736530236231,-500.0,9.555e-05,2]
[348441305,1736530236240,-500.0,9.555e-05,2]
[348441306,1736530236250,-500.0,9.555e-05,2]
[348441307,1736530236261,-500.0,9.555e-05,2]
[348441308,1736530236271,-500.0,9.555e-05,2]
[348441309,1736530236281,-500.0,9.555e-05,2]
[348441310,1736530236291,-500.0,9.555e-05,2]
[348441311,1736530236301,-523.43,9.555e-05,2]
[348441312,1736530236311,-500.0,9.555e-05,2]
[348441313,1736530236321,-500.0,9.555e-05,2]
[348441314,1736530236331,-500.0,9.555e-05,2]
[348441315,1736530236341,-500.0,9.555e-05,2]
[348441316,1736530236350,-636.37,9.555e-05,2]
[348441317,1736530236361,-500.0,9.555e-05,2]
[348441318,1736530236371,-500.0,9.555e-05,2]
[348441319,1736530236380,-500.0,9.555e-05,2]
[348441320,1736530236390,-500.0,9.555e-05,2]
[348441321,1736530236400,-500.0,9.555e-05,2]
[348441322,1736530236410,-500.0,9.555e-05,2]
[348441323,1736530236420,-521.71,9.555e-05,2]
[348441324,1736530236430,-500.0,9.555e-05,2]
[348441325,1736530236440,-500.0,9.555e-05,2]
[348441326,1736530236450,-500.0,9.555e-05,2]
[348441327,1736530236460,-500.0,9.555e-05,2]
[348441328,1736530236470,-500.0,9.555e-05,2]
[348441329,1736530236480,-500.0,9.555e-05,2]
[348441330,1736530236489,-584.47,9.555e-05,2]
[348441331,1736530236500,-500.0,9.555e-05,2]
[348441332,1736530236511,-500.0,9.555e-05,2]
[348441333,1736530236521,-500.0,9.555e-05,2]
[348441334,1736530236531,-351.26411594,9.555e-05,2]
[348441335,1736530236540,-500.0,9.555e-05,2]
[348441336,1736530236550,-500.0,9.555e-05,2]
[348441337,1736530236560,-500.0,9.555e-05,2]
[348441338,1736530236570,-500.0,9.555e-05,2]
[348441339,1736530236582,-500.0,9.555e-05,2]
[348441340,1736530236593,-500.0,9.555e-05,2]
[348441341,1736530236603,-500.0,9.555e-05,2]
[348441342,1736530236613,-500.0,9.555e-05,2]
[348441343,1736530236622,-500.0,9.555e-05,2]
[348441344,1736530236634,-501.85,9.555e-05,2]
[348441345,1736530236644,-500.0,9.555e-05,2]
[348441346,1736530236653,-500.0,9.555e-05,2]
[348441347,1736530236664,-500.0,9.555e-05,2]
[348441348,1736530236674,-500.0,9.555e-05,2]
[348441349,1736530236684,-500.0,9.555e-05,2]
[348441350,1736530236694,-500.0,9.555e-05,2]
[348441351,1736530236704,-500.0,9.555e-05,2]
[348441352,1736530236714,-500.0,9.555e-05,2]
[348441353,1736530236724,-500.0,9.555e-05,2]
[348441354,1736530236734,-531.89,9.555e-05,2]
[348441355,1736530236745,-576.13447432,9.555e-05,2]
[348441356,1736530236759,-500.0,9.555e-05,2]
[348441357,1736530236770,-500.0,9.555e-05,2]
[348441358,1736530236780,-500.0,9.555e-05,2]
[348441359,1736530236789,-500.0,9.555e-05,2]
[348441360,1736530236799,-500.0,9.555e-05,2]
[348441362,1736530236816,-1431.09,9.555e-05,2]
[348441364,1736530236826,-500.0,9.555e-05,2]
[348441366,1736530236836,-500.0,9.555e-05,2]
[348441368,1736530236846,-500.0,9.555e-05,2]
[348441371,1736530236858,-500.0,9.555e-05,2]
[348441373,1736530236868,-500.0,9.555e-05,2]
[348441374,1736530236878,-500.0,9.555e-05,2]
[348441375,1736530236887,-500.0,9.555e-05,2]
[348441376,1736530236898,-500.0,9.555e-05,2]
[348441377,1736530236908,-500.0,9.555e-05,2]
[348441378,1736530236917,-500.0,9.555e-05,2]
[348441380,1736530236927,-500.0,9.555e-05,2]
[348441382,1736530236937,-509.61,9.555e-05,2]
[348441384,1736530236947,-500.0,9.555e-05,2]
[348441385,1736530236957,-500.0,9.555e-05,2]
[348441386,1736530236966,-500.0,9.555e-05,2]
[348441387,1736530236976,-500.0,9.555e-05,2]
[348441389,1736530236985,-606.21,9.555e-05,2]
[348441390,1736530236996,-336.68238385,9.555e-05,2]
[348441391,1736530237008,-1131.44,9.555e-05,2]
[348441392,1736530237018,-500.0,9.555e-05,2]
[348441393,1736530237027,-500.0,9.555e-05,2]
[348441395,1736530237037,-500.0,9.555e-05,2]
[348441396,1736530237046,-500.0,9.555e-05,2]
[348441397,1736530237056,-500.0,9.555e-05,2]
[348441398,1736530237066,-500.0,9.555e-05,2]
[348441399,1736530237076,-500.0,9.555e-05,2]
[348441400,1736530237085,-500.0,9.555e-05,2]
[348441401,1736530237095,-500.0,9.555e-05,2]
[348441402,1736530237105,-500.0,9.555e-05,2]
[348441403,1736530237115,-500.0,9.555e-05,2]
[348441404,1736530237125,-500.0,9.555e-05,2]